bitfinex-derivatives/quotes_BTCF0:USTF0_20210707
["timestamp","ask_amount","ask_price","bid_price","bid_amount"]
[1625645595341,0.24057544,34801.0,34799.0,0.48115088]
[1625645595461,0.24057544,34800.0,34794.0,0.24157544]
[1625645595882,0.33577496,34796.0,34794.0,0.24157544]
[1625645596006,1.17490079,34796.0,34789.0,0.002]
[1625645596243,0.33581515,34790.0,34789.0,0.002]
[1625645596362,0.58579515,34790.0,34789.0,0.002]
[1625645596544,4.6871,34789.0,34783.0,0.25]
[1625645596784,0.3358594,34787.0,34783.0,0.25]
[1625645597567,0.96230176,34785.0,34783.0,0.25]
[1625645599425,0.0132244,34784.0,34783.0,0.25]
[1625645603633,0.96230176,34785.0,34783.0,0.25]
[1625645604053,0.0132429,34784.0,34783.0,0.25]
[1625645604654,0.96230176,34785.0,34783.0,0.25]
[1625645604777,0.72172632,34785.0,34783.0,0.56445]
[1625645604898,0.48115088,34785.0,34783.0,0.56445]
[1625645605559,0.48115088,34785.0,34783.0,0.80502544]
[1625645607308,0.48215088,34785.0,34783.0,0.80502544]
[1625645607484,0.48215088,34785.0,34783.0,0.49057544]
[1625645609408,0.48215088,34785.0,34783.0,0.70314544]
[1625645609530,0.48215088,34785.0,34783.0,0.46257]
[1625645611573,0.24157544,34785.0,34784.0,0.24057544]
[1625645611693,0.002,34790.0,34784.0,0.24057544]
[1625645613316,0.003,34795.0,34784.0,0.24057544]
[1625645613555,0.003,34795.0,34794.0,0.48115088]
[1625645613735,0.003,34795.0,34794.0,0.81146088]
[1625645616320,0.002,34796.0,34794.0,0.81146088]
[1625645616801,0.5055057,34796.0,34794.0,0.81146088]
[1625645616924,0.01323721,34795.0,34794.0,0.81146088]
[1625645617703,0.25381265,34795.0,34794.0,0.81146088]
[1625645617883,0.42170433,34795.0,34794.0,0.81146088]
[1625645618003,0.25381265,34795.0,34794.0,0.81146088]
[1625645618484,1.09337607,34795.0,34794.0,0.81146088]
[1625645618724,0.75768473,34795.0,34794.0,0.81146088]
[1625645618905,0.51710929,34795.0,34794.0,0.81146088]
[1625645619267,0.01323721,34795.0,34794.0,0.81146088]
[1625645619388,0.002,34796.0,34794.0,0.81146088]
[1625645621735,0.17011705,34796.0,34794.0,0.81146088]
[1625645621912,0.50624593,34796.0,34794.0,0.81146088]
[1625645622033,0.0132365,34795.0,34794.0,0.81146088]
[1625645622513,0.51784913,34795.0,34794.0,0.81146088]
[1625645622933,0.85403372,34795.0,34794.0,0.81146088]
[1625645623113,0.34958889,34795.0,34794.0,0.81146088]
[1625645623353,0.16825817,34795.0,34794.0,0.81146088]
[1625645623716,0.002,34796.0,34794.0,0.81146088]
[1625645625338,0.001,34796.0,34794.0,0.81146088]
[1625645625701,0.001,34796.0,34795.0,0.24057544]
[1625645625942,0.50504193,34805.0,34795.0,0.56109633]
[1625645626062,1.00957914,34808.0,34795.0,0.56109633]
[1625645626602,1.00955631,34809.0,34795.0,0.24057544]
[1625645626901,1.01053377,34808.0,34795.0,1.20291463]
[1625645627144,1.01053377,34808.0,34795.0,1.27401463]
[1625645627325,1.01053377,34808.0,34796.0,0.43273]
[1625645627683,1.01053377,34808.0,34807.0,0.72172632]
[1625645628408,2.19084372,34808.0,34807.0,0.72172632]
[1625645628528,2.01861685,34808.0,34807.0,0.72172632]
[1625645630452,4.04261931,34808.0,34807.0,0.72172632]
[1625645632078,4.04261931,34808.0,34807.0,0.78802632]
[1625645633278,4.05582224,34808.0,34807.0,0.78802632]
[1625645634416,4.04261931,34808.0,34807.0,0.78802632]
[1625645635736,4.05583036,34808.0,34807.0,0.78802632]
[1625645635982,2.69334055,34808.0,34807.0,1.11576632]
[1625645636098,2.69334055,34808.0,34807.0,1.11916632]
[1625645637303,2.70655135,34808.0,34807.0,1.11916632]
[1625645638326,4.05503522,34808.0,34807.0,0.79142632]
[1625645638871,5.5721656,34808.0,34807.0,0.79142632]
[1625645639226,5.5721656,34808.0,34807.0,0.79282632]
[1625645640610,5.5721656,34808.0,34807.0,0.31167544]
[1625645640790,5.60613234,34808.0,34807.0,0.31167544]
[1625645641089,7.29220262,34808.0,34807.0,0.31167544]
[1625645641810,7.7733535,34808.0,34807.0,0.0711]
[1625645645539,7.7733535,34808.0,34803.0,0.24157544]
[1625645645839,4.96268936,34804.0,34803.0,0.24157544]
[1625645645960,5.24978936,34804.0,34803.0,0.24157544]
[1625645646200,5.29701407,34804.0,34803.0,0.24157544]
[1625645647582,5.29701407,34804.0,34803.0,7.544e-05]
[1625645647762,7.22399879,34804.0,34798.0,0.002]
[1625645648184,4.65156618,34799.0,34798.0,0.002]
[1625645648605,4.66482317,34799.0,34798.0,0.002]
[1625645649929,4.90539861,34799.0,34798.0,0.002]
[1625645658289,4.90539861,34799.0,34796.0,0.24057544]
[1625645658529,3.37433062,34797.0,34796.0,0.24057544]
[1625645658770,4.38665101,34797.0,34796.0,0.24057544]
[1625645658890,4.39990617,34797.0,34796.0,0.24057544]
[1625645660036,4.64048161,34797.0,34796.0,0.24057544]
[1625645660156,4.98398161,34797.0,34796.0,0.24057544]
[1625645662799,3.12209187,34797.0,34796.0,0.24057544]
[1625645663279,4.47241287,34797.0,34796.0,0.24057544]
[1625645663760,4.23183743,34797.0,34796.0,0.57153544]
[1625645664180,2.88151643,34797.0,34796.0,0.57153544]
[1625645664662,4.23225974,34797.0,34796.0,0.57153544]
[1625645665625,4.23225974,34797.0,34796.0,0.24057544]
[1625645666102,5.75239783,34797.0,34796.0,0.24057544]
[1625645666281,6.02793783,34797.0,34796.0,0.24057544]
[1625645666583,6.06191221,34797.0,34796.0,0.24057544]
[1625645667483,6.06191221,34797.0,34795.0,0.24057544]
[1625645667842,5.79285766,34796.0,34795.0,0.24057544]
[1625645668083,6.0334331,34796.0,34792.0,0.001]
[1625645668324,5.745548,34793.0,34792.0,0.001]
[1625645668626,5.79277207,34793.0,34792.0,0.001]
[1625645669770,1.56804976,34793.0,34792.0,0.001]
[1625645669950,5.79248992,34793.0,34792.0,0.001]
[1625645670070,6.03306536,34793.0,34792.0,0.001]
[1625645671453,4.51223967,34793.0,34792.0,0.001]
[1625645672112,4.51223967,34793.0,34792.0,0.24157544]
[1625645672292,4.47826168,34793.0,34792.0,0.24157544]
[1625645672473,3.12648814,34793.0,34792.0,0.24157544]
[1625645673313,1.94366517,34793.0,34792.0,0.24157544]
[1625645673493,1.94366517,34793.0,34792.0,0.47063544]
[1625645674513,0.25382152,34793.0,34792.0,0.47063544]
[1625645674878,1.94368261,34793.0,34792.0,0.47063544]
[1625645675418,3.12653703,34793.0,34792.0,0.47063544]
[1625645675598,1.94368261,34793.0,34792.0,0.47063544]
[1625645676317,1.94368261,34793.0,34792.0,0.46963544]
[1625645677098,3.12652851,34793.0,34792.0,0.46963544]
[1625645677338,1.94368261,34793.0,34792.0,0.46963544]
[1625645680037,1.94368261,34793.0,34792.0,0.55190215]
[1625645680278,1.70310717,34793.0,34792.0,0.55190215]
[1625645680520,0.68922431,34793.0,34792.0,0.46963544]
[1625645680939,0.88623822,34796.0,34792.0,0.46963544]
[1625645681061,0.15193822,34796.0,34792.0,0.46963544]
[1625645681303,1.35175503,34799.0,34794.0,0.08208671]
[1625645681421,0.01320454,34795.0,34794.0,0.08208671]
[1625645681661,0.01320448,34798.0,34794.0,0.08208671]
[1625645681961,1.35175503,34799.0,34794.0,0.08208671]
[1625645681962,0.01320434,34795.0,34794.0,0.08208671]
[1625645682262,0.01320434,34795.0,34794.0,0.56323759]
[1625645682384,0.001,34795.0,34794.0,0.56323759]
[1625645682504,0.001,34795.0,34794.0,0.48115088]
[1625645682686,0.09885721,34795.0,34794.0,0.48115088]
[1625645682802,1.30894635,34801.0,34794.0,0.48115088]
[1625645682924,0.24057544,34804.0,34794.0,0.48115088]
[1625645683163,0.04715149,34803.0,34794.0,0.48115088]
[1625645684244,0.04715149,34803.0,34802.0,0.24057544]
[1625645684364,0.04715149,34803.0,34802.0,0.49213544]
[1625645687672,1.56831715,34803.0,34802.0,0.49213544]
[1625645688215,0.04715149,34803.0,34802.0,0.49213544]
[1625645688572,0.01318643,34803.0,34802.0,0.49213544]
[1625645694404,0.01318643,34803.0,34802.0,0.73271088]
[1625645697889,1.36665003,34803.0,34802.0,0.73271088]
[1625645700109,0.01318643,34803.0,34802.0,0.73271088]
[1625645701194,1.19721914,34804.0,34802.0,0.73271088]
[1625645701314,0.01318354,34804.0,34802.0,0.73271088]
[1625645701433,0.001,34805.0,34802.0,0.73271088]
[1625645701560,0.001,34805.0,34803.0,1.14482503]
[1625645701795,0.001,34805.0,34804.0,1.14496461]
[1625645702275,0.01418176,34805.0,34804.0,1.14496461]
[1625645702456,0.01418176,34805.0,34804.0,5.97866461]
[1625645702576,0.001,34805.0,34804.0,6.45981549]
[1625645702814,0.01418163,34805.0,34804.0,6.45981549]
[1625645703115,0.001,34805.0,34804.0,6.45981549]
[1625645703239,1.02693234,34811.0,34804.0,6.45981549]
[1625645703661,0.0131463,34810.0,34804.0,6.95981549]
[1625645703899,0.0131463,34810.0,34804.0,5.81485088]
[1625645704142,1.35173705,34816.0,34806.0,0.5]
[1625645704394,1.35173705,34816.0,34806.0,0.50480394]
[1625645704502,1.52061568,34821.0,34814.0,0.72172632]
[1625645704619,1.52061568,34821.0,34814.0,1.54572632]
[1625645704745,1.51911838,34824.0,34814.0,1.54572632]
[1625645704982,0.01310948,34819.0,34814.0,1.04572632]
[1625645705160,0.01310948,34819.0,34818.0,3.721]
[1625645705520,1.52407352,34825.0,34818.0,3.721]
[1625645705703,0.01307345,34824.0,34818.0,3.721]
[1625645705881,1.51869565,34828.0,34818.0,4.221]
[1625645706303,0.24057544,34829.0,34818.0,4.221]
[1625645706304,0.002,34819.0,34818.0,4.221]
[1625645706660,0.002,34819.0,34818.0,4.46157544]
[1625645707504,0.002,34819.0,34818.0,4.89514644]
[1625645708282,0.002,34819.0,34818.0,5.03784644]
[1625645709365,0.003,34824.0,34818.0,5.03784644]
[1625645710508,0.003,34824.0,34823.0,0.72172632]
[1625645710627,0.003,34824.0,34823.0,1.49030632]
[1625645711110,1.00919632,34832.0,34823.0,1.49030632]
[1625645711593,1.00802032,34834.0,34823.0,1.57700632]
[1625645711772,1.00802032,34834.0,34829.0,5.1454]
[1625645712312,0.004,34830.0,34829.0,5.1454]
[1625645712552,0.004,34830.0,34829.0,5.62655088]
[1625645716278,0.004,34830.0,34821.0,0.0857]
[1625645716402,0.004,34830.0,34819.0,0.48422619]
[1625645716645,0.96230176,34820.0,34819.0,0.48422619]
[1625645716759,0.96230176,34820.0,34818.0,0.1427]
[1625645716760,1.24324176,34820.0,34818.0,0.1427]
[1625645716998,1.24324176,34820.0,34818.0,0.0429]
[1625645717178,1.24324176,34820.0,34804.0,0.97271129]
[1625645717179,4.5319,34810.0,34804.0,0.97271129]
[1625645717301,4.75285,34810.0,34800.0,0.48718235]
[1625645717837,4.75285,34810.0,34798.0,0.48970311]
[1625645718259,4.75285,34810.0,34798.0,0.002]
[1625645718443,0.50357098,34809.0,34798.0,0.002]
[1625645718617,0.96230176,34804.0,34798.0,0.002]
[1625645719398,0.96230176,34804.0,34796.0,0.4881181]
[1625645719641,0.96230176,34804.0,34797.0,0.48802992]
[1625645720179,0.96230176,34804.0,34796.0,0.48799206]
[1625645720658,0.72172632,34804.0,34801.0,0.24057544]
[1625645721318,0.72172632,34804.0,34797.0,0.24057544]
[1625645721440,1.05224632,34804.0,34797.0,0.24057544]
[1625645722700,0.24057544,34798.0,34796.0,0.48811465]
[1625645722942,0.24057544,34798.0,34792.0,0.48900646]
[1625645723360,4.7399,34795.0,34792.0,0.48900646]
[1625645723480,4.95513,34795.0,34792.0,0.48900646]
[1625645723963,4.95513,34795.0,34790.0,0.7299476]
[1625645724204,4.95513,34795.0,34790.0,0.24057544]
[1625645724685,0.48115088,34791.0,34790.0,0.24057544]
[1625645732138,0.48115088,34791.0,34786.0,0.98300784]
[1625645732319,0.48115088,34791.0,34786.0,0.7424324]
[1625645732560,0.48115088,34791.0,34786.0,0.252]
[1625645732678,0.48115088,34787.0,34786.0,0.252]
[1625645736286,0.9854867,34787.0,34781.0,0.003]
[1625645736524,0.50436704,34785.0,34781.0,0.003]
[1625645736643,0.80317704,34785.0,34781.0,0.003]
[1625645736769,0.48115088,34782.0,34781.0,0.003]
[1625645737304,0.48115088,34782.0,34776.0,0.004]
[1625645737546,0.50406534,34780.0,34776.0,0.004]
[1625645737970,0.50403564,34779.0,34776.0,0.004]
[1625645738212,0.50403963,34778.0,34776.0,0.004]
[1625645738389,0.73480963,34778.0,34771.0,0.005]
[1625645738569,0.23077,34778.0,34771.0,0.005]
[1625645738750,0.72172632,34772.0,34771.0,0.005]
[1625645739412,0.72172632,34772.0,34769.0,0.004]
[1625645739536,4.9042,34770.0,34769.0,0.004]
[1625645739656,5.16579,34770.0,34769.0,0.004]
[1625645740803,5.40636544,34770.0,34769.0,0.004]
[1625645742242,5.40636544,34770.0,34760.0,0.0875]
[1625645742360,5.40636544,34770.0,34769.0,0.004]
[1625645744040,5.14477544,34770.0,34769.0,0.004]
[1625645744705,5.48751544,34770.0,34769.0,0.004]
[1625645745661,5.57451544,34770.0,34769.0,0.004]
[1625645745968,5.57451544,34770.0,34764.0,0.005]
[1625645746086,5.48751544,34770.0,34764.0,0.005]
[1625645746802,0.48115088,34765.0,34764.0,0.005]
[1625645748304,0.48115088,34765.0,34762.0,0.002]
[1625645748843,0.24057544,34763.0,34762.0,0.002]
[1625645750827,0.06821971,34763.0,34762.0,0.002]
[1625645752088,0.30628971,34763.0,34762.0,0.002]
[1625645757443,0.30628971,34763.0,34760.0,0.001]
[1625645759308,0.001,34767.0,34760.0,0.001]
[1625645759431,0.001,34767.0,34760.0,0.31943]
[1625645759547,0.001,34767.0,34760.0,0.81943]
[1625645759667,0.001,34767.0,34760.0,0.64313563]
[1625645759908,0.001,34767.0,34761.0,0.32340594]
[1625645760272,5.14477544,34770.0,34761.0,0.80834837]
[1625645760509,5.14477544,34770.0,34760.0,1.12779755]
[1625645760809,5.14477544,34770.0,34769.0,0.48115088]
[1625645762432,5.14477544,34770.0,34769.0,0.76558088]
[1625645763633,5.14477544,34770.0,34769.0,0.48115088]
[1625645764293,5.14477544,34770.0,34764.0,0.24057544]
[1625645764412,5.46559544,34770.0,34764.0,0.24057544]
[1625645764894,0.48115088,34765.0,34764.0,0.24057544]
[1625645765918,0.49411729,34765.0,34764.0,0.24544972]
[1625645766395,0.32176148,34765.0,34764.0,0.24544972]
[1625645770244,0.32176148,34765.0,34764.0,0.24944972]
[1625645771503,0.32176148,34765.0,34764.0,0.25344972]
[1625645772044,0.65970148,34765.0,34764.0,0.25344972]
[1625645774509,0.48732096,34765.0,34764.0,0.25344972]
[1625645775594,0.14938096,34765.0,34764.0,0.58879972]
[1625645776557,0.14938096,34765.0,34764.0,0.25344972]
[1625645781246,5.12277588,34770.0,34764.0,0.25344972]
[1625645781486,5.62791663,34770.0,34764.0,0.25344972]
[1625645781969,0.01298484,34769.0,34765.0,0.0048706]
[1625645782931,0.01298484,34769.0,34768.0,0.24057544]
[1625645783537,0.01298484,34769.0,34768.0,0.24457544]
[1625645783655,0.51860273,34769.0,34768.0,0.24457544]
[1625645783894,0.85545478,34769.0,34768.0,0.24457544]
[1625645784074,0.51860112,34769.0,34768.0,0.24457544]
[1625645784377,0.51960112,34769.0,34768.0,0.24457544]
[1625645784797,0.35100729,34769.0,34768.0,0.24457544]
[1625645785035,0.85650625,34769.0,34768.0,0.24457544]
[1625645785278,0.5194838,34769.0,34768.0,0.24457544]
[1625645785517,1.19395529,34769.0,34768.0,0.24457544]
[1625645786299,0.5194838,34769.0,34768.0,0.24457544]
[1625645786485,0.52003815,34769.0,34768.0,0.24457544]
[1625645786607,0.52003815,34769.0,34768.0,0.24857544]
[1625645786968,0.85723803,34769.0,34768.0,0.24857544]
[1625645787146,0.35129752,34769.0,34768.0,0.24857544]
[1625645787267,0.35029752,34769.0,34768.0,0.24857544]
[1625645787386,0.5190565,34769.0,34768.0,0.24857544]
[1625645787690,1.19447902,34769.0,34768.0,0.24857544]
[1625645788170,1.02212329,34769.0,34768.0,0.24857544]
[1625645788289,1.35498329,34769.0,34768.0,0.24857544]
[1625645789012,1.36793706,34769.0,34768.0,0.24857544]
[1625645789318,1.03507706,34769.0,34768.0,0.24857544]
[1625645789853,1.03507706,34769.0,34768.0,0.41826777]
[1625645790093,1.03507706,34769.0,34768.0,0.74786486]
[1625645790273,0.51933252,34769.0,34768.0,0.74786486]
[1625645790998,0.51933252,34769.0,34768.0,0.58305788]
[1625645791302,0.51933252,34769.0,34768.0,0.74785343]
[1625645791720,0.51933252,34769.0,34768.0,0.74849779]
[1625645791721,1.53465017,34769.0,34768.0,0.74849779]
[1625645792201,1.53465017,34769.0,34768.0,1.73844094]
[1625645792325,1.53465017,34769.0,34766.0,1.39666177]
[1625645792446,1.76465017,34769.0,34766.0,1.39666177]
[1625645792566,1.76465017,34769.0,34767.0,0.99001099]
[1625645792807,2.55141183,34768.0,34767.0,0.00487958]
[1625645792987,2.55141183,34768.0,34766.0,0.24157544]
[1625645792988,2.79198727,34768.0,34766.0,0.24157544]
[1625645793227,1.18460273,34767.0,34766.0,0.40679605]
[1625645793471,2.53994545,34767.0,34766.0,0.24157544]
[1625645793588,2.55291207,34767.0,34766.0,0.24645482]
[1625645795331,2.55291207,34767.0,34766.0,0.57740668]
[1625645795572,3.90789137,34767.0,34766.0,0.24645482]
[1625645796051,2.38055139,34767.0,34766.0,0.24645482]
[1625645796292,2.38055139,34767.0,34766.0,0.24545482]
[1625645798696,2.38055139,34767.0,34766.0,0.51228482]
[1625645799056,2.38055139,34767.0,34766.0,0.75286026]
[1625645799538,1.02520867,34767.0,34766.0,2.07834969]
[1625645800981,0.01296662,34767.0,34766.0,2.07834969]
[1625645801522,0.01296112,34768.0,34766.0,2.07834969]
[1625645801702,0.01296112,34768.0,34767.0,1.32996796]
[1625645802722,1.35802623,34769.0,34767.0,1.32996796]
[1625645802723,1.19861675,34769.0,34767.0,1.32996796]
[1625645802964,1.19861675,34769.0,34767.0,0.00488086]
[1625645803084,1.19861675,34769.0,34768.0,0.24547852]
[1625645803206,0.001,34773.0,34768.0,0.24547852]
[1625645803568,0.01290907,34772.0,34769.0,0.00490254]
[1625645804051,0.001,34773.0,34769.0,1.49496654]
[1625645804170,0.001,34773.0,34770.0,1.49054832]
[1625645804410,0.001,34773.0,34770.0,1.4954505]
[1625645804651,0.001,34773.0,34771.0,0.0049021]
[1625645805074,0.001,34773.0,34772.0,0.24057544]
[1625645805493,0.001,34773.0,34772.0,0.24547738]
[1625645807598,0.001,34773.0,34772.0,0.24057544]
[1625645808616,0.001,34773.0,34772.0,0.24547749]
[1625645809818,1.35652205,34779.0,34772.0,0.24057544]
[1625645809938,0.24057544,34781.0,34778.0,0.49733865]
[1625645810058,0.24057544,34781.0,34778.0,0.81867865]
[1625645810178,0.01290788,34780.0,34778.0,0.81867865]
[1625645810420,0.01290788,34780.0,34779.0,0.49765706]
[1625645811087,0.01290788,34780.0,34779.0,0.72172632]
[1625645811386,0.01290686,34782.0,34779.0,0.72172632]
[1625645811626,4.7368,34783.0,34779.0,0.72172632]
[1625645813127,4.7368,34783.0,34782.0,0.24057544]
[1625645815049,0.003,34783.0,34782.0,0.24057544]
[1625645815172,0.003,34783.0,34782.0,0.74057544]
[1625645815410,0.51095297,34783.0,34782.0,0.74057544]
[1625645815528,0.51095297,34783.0,34782.0,0.24057544]
[1625645815649,0.17237406,34783.0,34782.0,1.39698376]
[1625645815890,0.34155874,34783.0,34782.0,1.39698376]
[1625645816548,0.51092209,34783.0,34782.0,1.39698376]
[1625645817030,0.003,34783.0,34782.0,1.39698376]
[1625645817330,0.50751021,34783.0,34782.0,0.24057544]
[1625645817508,0.50746843,34784.0,34782.0,0.24057544]
[1625645817811,0.16921301,34783.0,34782.0,0.24057544]
[1625645817928,0.33516773,34784.0,34782.0,0.24057544]
[1625645818168,1.18449121,34787.0,34782.0,0.24057544]
[1625645818468,1.18449121,34787.0,34782.0,0.24827544]
[1625645818948,0.001,34787.0,34782.0,0.24827544]
[1625645819188,1.18390113,34787.0,34786.0,0.48115088]
[1625645822912,1.0144737,34787.0,34786.0,0.48115088]
[1625645824771,0.8422022,34787.0,34786.0,0.48115088]
[1625645828316,0.8422022,34787.0,34786.0,0.56015088]
[1625645828736,0.85512177,34787.0,34786.0,0.56015088]
[1625645829158,2.03630738,34787.0,34786.0,0.56015088]
[1625645829637,0.85512177,34787.0,34786.0,0.56015088]
[1625645830843,1.16729177,34787.0,34786.0,0.56015088]
[1625645831145,2.34834004,34787.0,34786.0,0.56015088]
[1625645831263,2.82949092,34787.0,34786.0,0.56015088]
[1625645831686,4.17925195,34787.0,34786.0,0.56015088]
[1625645831864,4.00698045,34787.0,34786.0,0.56015088]
[1625645832165,2.65721942,34787.0,34786.0,0.56015088]
[1625645833306,1.47617115,34787.0,34786.0,0.56015088]
[1625645837334,1.47617115,34787.0,34786.0,0.62375088]
[1625645839199,1.30389965,34787.0,34786.0,0.62375088]
[1625645840524,2.48477363,34787.0,34786.0,0.62375088]
[1625645843465,1.30389965,34787.0,34786.0,0.62375088]
[1625645844667,0.80624045,34787.0,34786.0,0.62375088]
[1625645844967,1.987523,34787.0,34786.0,0.62375088]
[1625645845207,0.80624045,34787.0,34786.0,0.62375088]
[1625645846108,0.63396895,34787.0,34786.0,0.62375088]
[1625645847613,1.81541709,34787.0,34786.0,0.62375088]
[1625645847915,0.63396895,34787.0,34786.0,0.62375088]
[1625645848396,2.49071456,34787.0,34786.0,0.62375088]
[1625645848879,7.51561456,34787.0,34786.0,0.62375088]
[1625645850019,7.54959559,34787.0,34786.0,0.62375088]
[1625645851041,7.51561456,34787.0,34786.0,0.62375088]
[1625645853024,7.34334306,34787.0,34786.0,0.62375088]
[1625645854887,8.69532696,34787.0,34786.0,0.62375088]
[1625645855128,7.34334306,34787.0,34786.0,0.62375088]
[1625645855427,8.72931591,34787.0,34786.0,0.62375088]
[1625645855669,8.69533588,34787.0,34786.0,0.62375088]
[1625645855910,7.34334306,34787.0,34786.0,0.62375088]
[1625645856871,8.69613152,34787.0,34786.0,0.62375088]
[1625645857290,8.7301116,34787.0,34786.0,0.62375088]
[1625645859936,8.31726466,34787.0,34786.0,0.62375088]
[1625645861800,8.31726466,34787.0,34786.0,0.6286623]
[1625645862340,8.31726466,34787.0,34786.0,0.62375088]
[1625645862819,9.84217532,34787.0,34786.0,0.62375088]
[1625645862943,10.18324532,34787.0,34786.0,0.62375088]
[1625645863783,11.87788756,34787.0,34786.0,0.62375088]
[1625645864081,11.87788756,34787.0,34782.0,0.24057544]
[1625645864201,4.745281,34783.0,34781.0,0.08334969]
[1625645864442,4.74491628,34782.0,34780.0,0.08345274]
[1625645864564,4.75779995,34782.0,34780.0,0.08345274]
[1625645864742,1.53798692,34782.0,34781.0,0.08345846]
[1625645864924,4.74546324,34782.0,34781.0,0.08345846]
[1625645865043,4.75834696,34782.0,34781.0,0.08345846]
[1625645865524,5.23949784,34782.0,34781.0,0.08345846]
[1625645866602,5.23949784,34782.0,34780.0,0.08354774]
[1625645866723,4.74662997,34781.0,34779.0,0.67056931]
[1625645866843,4.57435847,34781.0,34779.0,0.67056931]
[1625645866965,2.54281449,34780.0,34779.0,0.67056931]
[1625645867083,2.77598449,34780.0,34779.0,0.67056931]
[1625645867205,2.78886835,34780.0,34779.0,0.67056931]
[1625645867687,4.31454078,34780.0,34779.0,0.002]
[1625645867987,2.78886835,34780.0,34779.0,0.002]
[1625645869192,3.80624379,34780.0,34779.0,1.01649879]
[1625645869313,3.80624379,34780.0,34779.0,1.01449879]
[1625645874965,3.63393762,34780.0,34779.0,1.01449879]
[1625645875684,3.63393762,34780.0,34779.0,1.27043879]
[1625645877611,3.63393762,34780.0,34779.0,1.51101423]
[1625645879712,1.2634293,34780.0,34779.0,1.51101423]
[1625645879832,2.20394917,34780.0,34779.0,1.51101423]
[1625645880256,2.21683443,34780.0,34779.0,1.51101423]
[1625645881215,2.21683443,34780.0,34779.0,0.49651544]
[1625645881336,2.21683443,34780.0,34779.0,0.24057544]
[1625645881459,3.74228419,34780.0,34779.0,0.24057544]
[1625645881818,3.56997802,34780.0,34779.0,0.24057544]
[1625645882539,4.07860941,34780.0,34779.0,0.74889425]
[1625645883204,4.06572415,34780.0,34779.0,0.74889425]
[1625645884463,4.06572415,34780.0,34779.0,0.24057544]
[1625645884824,4.06572415,34780.0,34779.0,0.32529371]
[1625645886988,4.07861959,34780.0,34779.0,0.32529371]
[1625645887586,4.07861959,34780.0,34779.0,0.74882549]
[1625645888491,2.55316983,34780.0,34779.0,0.74882549]
[1625645888731,2.38086366,34780.0,34779.0,0.74882549]
[1625645890295,3.73536331,34780.0,34779.0,0.74882549]
[1625645890654,8.77676331,34780.0,34779.0,0.74882549]
[1625645891193,10.29946419,34780.0,34779.0,0.24057544]
[1625645892097,10.29946419,34780.0,34779.0,0.32527619]
[1625645893178,8.77676331,34780.0,34779.0,0.32527619]
[1625645895344,8.77676331,34780.0,34779.0,0.24057544]
[1625645895705,8.60445714,34780.0,34779.0,0.24057544]
[1625645896307,8.60445714,34780.0,34779.0,0.32526346]
[1625645897088,10.14759808,34780.0,34779.0,0.24057544]
[1625645901355,10.11361215,34780.0,34779.0,0.24057544]
[1625645902500,10.14759794,34780.0,34779.0,0.24057544]
[1625645902918,10.47077794,34780.0,34779.0,0.24057544]
[1625645903337,10.29847177,34780.0,34779.0,0.24057544]
[1625645907605,9.97529177,34780.0,34779.0,0.24057544]
[1625645910306,9.8029856,34780.0,34779.0,0.24057544]
[1625645914520,8.29383059,34780.0,34779.0,0.74896662]
[1625645914642,3.2184448,34780.0,34779.0,0.74896662]
[1625645914760,1.86394515,34780.0,34779.0,1.93506316]
[1625645914879,1.86394515,34780.0,34779.0,1.93997359]
[1625645915181,1.86394515,34780.0,34779.0,3.29547755]
[1625645915660,0.67737142,34780.0,34779.0,3.29547755]
[1625645916440,1.86056322,34780.0,34779.0,3.29547755]
[1625645917164,1.68825705,34780.0,34779.0,3.29547755]
[1625645917461,0.50506525,34780.0,34779.0,3.29547755]
[1625645917943,1.68742597,34780.0,34779.0,1.93997359]
[1625645918184,3.03844392,34780.0,34779.0,1.93997359]
[1625645918362,3.03844392,34780.0,34779.0,1.93506316]
[1625645918483,1.68742597,34780.0,34779.0,1.93506316]
[1625645919148,1.68742597,34780.0,34779.0,2.02557363]
[1625645919265,1.68742597,34780.0,34779.0,3.3815643]
[1625645920468,1.68742597,34780.0,34779.0,3.37665383]
[1625645922153,1.68742597,34780.0,34779.0,3.38156415]
[1625645922574,1.68742597,34780.0,34779.0,3.29596415]
[1625645922874,1.68742597,34780.0,34779.0,3.29105383]
[1625645923478,1.77332597,34780.0,34779.0,3.29105383]
[1625645923598,1.77332597,34780.0,34779.0,3.37845383]
[1625645924019,2.95767752,34780.0,34779.0,3.37845383]
[1625645924745,1.6010198,34780.0,34779.0,3.37845383]
[1625645925227,1.5151198,34780.0,34779.0,3.37845383]
[1625645925646,1.5151198,34780.0,34779.0,3.38336738]
[1625645926306,0.31986364,34780.0,34779.0,3.29105383]
[1625645926606,1.51948489,34780.0,34779.0,3.29105383]
[1625645927088,2.1976941,34780.0,34779.0,3.96741877]
[1625645927270,2.1976941,34780.0,34779.0,4.05441877]
[1625645928232,2.18480911,34780.0,34779.0,4.05441877]
[1625645928532,0.99807285,34780.0,34779.0,4.05441877]
[1625645929192,2.18465281,34780.0,34779.0,4.05441877]
[1625645929312,2.19753785,34780.0,34779.0,4.05441877]
[1625645929492,2.18465281,34780.0,34779.0,4.05441877]
[1625645930033,2.18465281,34780.0,34779.0,3.96741877]
[1625645930996,2.01234664,34780.0,34779.0,3.96741877]
[1625645931117,0.82576668,34780.0,34779.0,3.96741877]
[1625645934845,0.82576668,34780.0,34779.0,4.05411877]
[1625645935927,2.01194869,34780.0,34779.0,4.05411877]
[1625645936047,2.02483466,34780.0,34779.0,4.05411877]
[1625645936167,2.02483466,34780.0,34779.0,2.6981281]
[1625645936347,2.02483466,34780.0,34779.0,4.04830951]
[1625645936646,2.02483466,34780.0,34779.0,2.6981281]
[1625645936829,2.30371466,34780.0,34779.0,2.6114281]
[1625645937200,3.65940895,34780.0,34779.0,1.42533156]
[1625645937369,5.18454211,34780.0,34779.0,1.50975023]
[1625645937501,5.18454211,34780.0,34779.0,0.32499411]
[1625645937669,5.18454211,34780.0,34778.0,0.08444839]
[1625645937790,5.01223594,34780.0,34778.0,0.08444839]
[1625645938088,4.0672152,34779.0,34777.0,0.08546857]
[1625645938211,4.08010369,34779.0,34777.0,0.06806857]
[1625645938329,4.06741795,34778.0,34775.0,0.33801164]
[1625645938508,4.06741795,34778.0,34774.0,0.33793161]
[1625645938509,4.06748907,34776.0,34774.0,0.33793161]
[1625645938749,4.06732203,34775.0,34773.0,0.33797637]
[1625645938991,4.08021182,34775.0,34773.0,0.33797637]
[1625645939111,4.06734963,34774.0,34772.0,0.002]
[1625645939231,4.08023942,34774.0,34772.0,0.002]
[1625645939410,4.06713395,34773.0,34772.0,0.002]
[1625645939532,4.41445371,34773.0,34772.0,0.002]
[1625645940437,4.89560459,34773.0,34772.0,0.002]
[1625645940554,6.59031258,34773.0,34772.0,0.002]